bitfinex/quotes_SOLUSD_20250429
["timestamp","ask_amount","ask_price","bid_price","bid_amount"]
[1745935074813,0.03,147.79,147.78,22.30053296]
[1745935075023,0.03,147.79,147.78,15.53371743]
[1745935075190,0.03,147.79,147.78,22.30053296]
[1745935075911,0.03,147.79,147.78,15.53371743]
[1745935076953,0.03,147.79,147.78,41.09234339]
[1745935077096,0.03,147.81,147.8,34.18336629]
[1745935077305,0.03,147.81,147.8,35.53594509]
[1745935077494,0.03,147.82,147.81,18.79181043]
[1745935077690,0.03,147.82,147.81,48.40336629]
[1745935078599,1e-08,147.82,147.81,48.40336629]
[1745935079327,1e-08,147.84,147.83,75.71708372]
[1745935079485,1e-08,147.85,147.84,20.569172]
[1745935079690,1e-08,147.85,147.84,51.35228372]
[1745935081325,1e-08,147.85,147.84,58.11635298]
[1745935082693,0.03,147.88,147.84,76.37868775]
[1745935082901,0.03,147.88,147.87,34.18336629]
[1745935083099,0.03,147.88,147.87,48.40336629]
[1745935083520,0.03,147.88,147.87,55.16606325]
[1745935085923,0.03,147.88,147.87,55.30822482]
[1745935086223,0.03,147.88,147.87,55.16606325]
[1745935086432,1e-08,147.88,147.87,81.30822482]
[1745935087628,0.03,147.94,147.91,18.79181043]
[1745935087937,0.03,147.94,147.93,15.39155586]
[1745935088129,0.03,147.94,147.93,15.53371743]
[1745935089627,0.03,147.94,147.93,55.14332032]
[1745935090906,0.03,147.94,147.93,14.2]
[1745935091233,0.03,147.94,147.93,29.73371743]
[1745935092523,0.03,147.94,147.93,14.34216157]
[1745935092931,0.03,147.94,147.93,29.73371743]
[1745935093517,0.03,147.94,147.93,14.34216157]
[1745935096737,15.42155586,147.94,147.93,14.2]
[1745935098637,82.9,147.93,147.89,0.14216157]
[1745935098836,15.39155586,147.9,147.88,14.2]
[1745935099045,15.39155586,147.89,147.88,14.2]
[1745935099216,15.39155586,147.89,147.88,14.34216157]
[1745935099422,15.39155586,147.89,147.88,14.2]
[1745935099718,15.39155586,147.89,147.88,14.34216157]
[1745935099922,15.39155586,147.9,147.88,14.2]
[1745935101047,15.39155586,147.91,147.88,14.2]
[1745935101742,82.9,147.9,147.88,14.2]
[1745935101960,15.39155586,147.89,147.88,14.2]
[1745935103424,82.9,147.93,147.88,48.38336629]
[1745935103743,0.03,147.94,147.88,48.38336629]
[1745935103744,0.03,147.94,147.93,0.14216157]
[1745935103943,0.03,147.94,147.93,15.53371743]
[1745935105456,0.03,147.94,147.93,22.29367146]
[1745935105631,0.03,147.94,147.93,31.46829876]
[1745935105960,0.03,147.94,147.93,24.70834473]
[1745935106963,0.03,147.94,147.93,31.46829876]
[1745935107648,0.03,147.94,147.93,50.11794762]
[1745935107857,0.03,147.94,147.93,24.70834473]
[1745935108067,0.03,147.94,147.93,31.46829876]
[1745935108361,0.03,147.94,147.93,50.11794762]
[1745935113459,0.03,147.94,147.93,50.26010919]
[1745935113663,0.03,147.96,147.95,76.1170338]
[1745935113835,0.03,147.96,147.95,90.45919537]
[1745935117250,0.03,148.0,147.97,0.28432314]
[1745935117455,0.03,148.0,147.99,43.35799359]
[1745935117757,0.03,148.0,147.99,24.70834473]
[1745935118666,0.03,148.0,147.99,0.14216157]
[1745935119275,24.59618316,148.0,147.95,14.2]
[1745935119451,24.56618316,147.98,147.95,14.2]
[1745935121776,107.46618316,147.97,147.95,14.2]
[1745935122164,107.46618316,147.97,147.94,0.14216157]
[1745935122548,24.56618316,147.96,147.94,0.14216157]
[1745935122748,82.9,147.97,147.94,0.14216157]
[1745935122749,107.46618316,147.97,147.94,0.14216157]
[1745935122950,82.9,147.97,147.94,24.70834473]
[1745935123355,82.9,147.97,147.94,31.46775236]
[1745935123557,82.9,147.97,147.95,24.56618316]
[1745935123867,82.9,147.97,147.96,24.56618316]
[1745935124070,82.9,147.97,147.96,24.70834473]
[1745935124254,82.93,148.0,147.96,24.70834473]
[1745935124456,82.93,148.0,147.98,24.70834473]
[1745935124775,82.93,148.0,147.98,0.14216157]
[1745935125469,107.46618316,147.99,147.94,24.56618316]
[1745935125679,24.56618316,147.98,147.94,24.56618316]
[1745935125880,24.56618316,147.98,147.95,0.14216157]
[1745935126771,107.46618316,147.99,147.95,24.70834473]
[1745935127461,24.56618316,147.98,147.95,0.14216157]
[1745935127851,24.56618316,147.98,147.94,24.70834473]
[1745935128067,24.56618316,147.98,147.94,31.46778636]
[1745935128688,107.46618316,147.99,147.94,31.46778636]
[1745935129175,107.46618316,147.99,147.96,0.14216157]
[1745935129378,82.9,147.98,147.96,0.14216157]
[1745935130068,82.9,147.98,147.96,31.46688271]
[1745935131058,82.9,147.98,147.96,0.14216157]
[1745935131665,82.9,147.98,147.9,6.76132521]
[1745935131666,107.46618316,147.97,147.9,6.76132521]
[1745935131870,24.56618316,147.94,147.89,6.76163675]
[1745935132183,107.46618316,147.95,147.91,24.70834473]
[1745935132380,82.9,147.95,147.91,24.70834473]
[1745935132752,24.56618316,147.92,147.85,6.76361176]
[1745935132965,24.56618316,147.93,147.85,6.76361176]
[1745935133172,24.56618316,147.93,147.86,44.64964886]
[1745935133380,24.56618316,147.93,147.88,24.56618316]
[1745935133589,24.56618316,147.93,147.89,24.56618316]
[1745935133793,24.56618316,147.93,147.9,0.14216157]
[1745935135087,107.46618316,147.94,147.9,24.70834473]
[1745935135476,107.46618316,147.94,147.9,31.46962898]
[1745935135900,107.46618316,147.94,147.9,0.14216157]
[1745935136281,107.46618316,147.94,147.9,24.70834473]
[1745935136480,24.56618316,147.94,147.9,31.46966616]
[1745935136696,24.56618316,147.95,147.92,0.14216157]
[1745935137181,82.9,147.98,147.95,0.14216157]
[1745935137395,0.03,148.0,147.97,24.56618316]
[1745935138302,24.59618316,148.0,147.96,24.70834473]
[1745935138975,24.59618316,148.0,147.96,31.4669281]
[1745935139607,24.59618316,148.0,147.96,24.70834473]
[1745935139787,24.59618316,148.0,147.95,0.14216157]
[1745935139788,24.56618316,147.98,147.95,0.14216157]
[1745935140105,107.46618316,147.97,147.92,31.32641629]
[1745935140280,82.9,147.96,147.93,0.14216157]
[1745935140972,107.46618316,147.96,147.93,0.14216157]
[1745935141989,107.46618316,147.95,147.93,0.14216157]
[1745935142304,107.46618316,147.94,147.87,18.64964886]
[1745935142601,24.56618316,147.91,147.87,43.21583202]
[1745935142899,24.56618316,147.92,147.89,0.14216157]
[1745935143102,24.56618316,147.92,147.88,24.56618316]
[1745935143419,24.56618316,147.92,147.89,0.14216157]
[1745935143587,24.56618316,147.91,147.89,0.14216157]
[1745935143788,24.56618316,147.92,147.89,0.14216157]
[1745935144224,82.9,147.93,147.89,0.14216157]
[1745935144382,24.56618316,147.92,147.89,0.14216157]
[1745935144800,107.46618316,147.93,147.89,24.70834473]
[1745935145797,107.46618316,147.93,147.89,31.47002033]
[1745935146122,24.56618316,147.92,147.89,0.14216157]
[1745935146296,107.46618316,147.91,147.89,0.14216157]
[1745935147315,82.9,147.91,147.89,0.14216157]
[1745935149119,107.46618316,147.91,147.89,0.14216157]
[1745935150234,107.46618316,147.91,147.88,0.14216157]
[1745935151703,107.46618316,147.9,147.88,0.14216157]
[1745935152069,82.9,147.9,147.88,0.14216157]
[1745935152401,109.04658316,147.89,147.82,25.47748273]
[1745935152623,24.56618316,147.84,147.82,0.063]
[1745935152824,24.56618316,147.83,147.82,0.063]
[1745935153025,24.56618316,147.84,147.82,0.063]
[1745935154629,107.46618316,147.83,147.82,0.063]
[1745935155598,24.56618316,147.83,147.82,0.063]
[1745935162638,0.98389886,147.86,147.82,0.063]
[1745935162816,24.56618316,147.83,147.82,0.063]
[1745935167357,24.56618316,147.84,147.82,0.063]
[1745935167661,25.40792045,147.87,147.83,24.56618316]
[1745935167831,24.56618316,147.86,147.82,24.62918316]
[1745935169458,24.56618316,147.86,147.82,31.39384357]
[1745935169965,24.56618316,147.83,147.82,0.063]
[1745935172066,27.01282045,147.83,147.82,0.063]
[1745935172536,2.44663729,147.83,147.82,0.063]
[1745935172740,27.01282045,147.83,147.82,0.063]
[1745935172944,27.15498202,147.83,147.82,0.063]
[1745935173636,59.91950884,147.83,147.82,0.063]
[1745935175973,7.7233,147.88,147.82,0.063]
[1745935176268,50.70834473,147.83,147.82,0.063]
[1745935176454,59.27338202,147.83,147.82,0.063]
[1745935177866,66.03790884,147.83,147.82,0.063]
[1745935178263,59.27338202,147.83,147.82,0.063]
[1745935180261,33.27338202,147.83,147.82,0.063]
[1745935180463,51.92303088,147.83,147.82,0.063]
[1745935180967,51.92303088,147.83,147.78,0.063]
[1745935180968,0.14216157,147.79,147.78,0.063]
[1745935181269,25.55008202,147.79,147.78,0.063]
[1745935182271,25.40792045,147.79,147.78,0.063]
[1745935182570,25.55008202,147.79,147.78,0.063]
[1745935191651,16.38309336,147.79,147.78,0.063]
[1745935192358,18.79181043,147.78,147.77,0.063]
[1745935192671,18.79181043,147.78,147.74,0.063]
[1745935192672,26.14216157,147.75,147.74,0.063]
[1745935192860,42.38309336,147.75,147.74,0.063]
[1745935195680,51.6421456,147.75,147.74,0.063]
[1745935196051,70.29179446,147.75,147.74,0.063]
[1745935197265,51.6421456,147.75,147.74,0.063]
[1745935198182,26.0,147.75,147.74,0.063]
[1745935198354,50.65824674,147.75,147.74,0.063]
[1745935198552,51.49998403,147.75,147.74,0.063]
[1745935198761,51.6421456,147.75,147.74,0.063]
[1745935200479,25.6421456,147.75,147.74,0.063]
[1745935200780,51.6421456,147.75,147.74,0.063]
[1745935201366,51.6421456,147.75,147.72,0.063]
[1745935201666,51.6421456,147.75,147.44,104.5721968]
[1745935201667,26.0,147.53,147.44,104.5721968]
[1745935201970,50.31649348,147.46,147.43,1e-08]
[1745935202290,1.0,147.44,147.43,1e-08]
[1745935202491,0.84173729,147.44,147.43,1e-08]
[1745935203166,0.84173729,147.5,147.43,24.65824675]
[1745935203373,0.84173729,147.53,147.43,1e-08]
[1745935203572,4.96659755,147.52,147.43,1e-08]
[1745935204207,24.65824674,147.47,147.43,1e-08]
[1745935204499,24.65824674,147.44,147.43,1e-08]
[1745935205062,49.31649348,147.44,147.43,1e-08]
[1745935205494,24.65824674,147.44,147.43,1e-08]
[1745935205887,49.31649348,147.44,147.43,1e-08]
[1745935206091,49.31649348,147.43,147.42,0.063]
[1745935206380,0.84173729,147.46,147.42,0.063]
[1745935206587,49.31649348,147.43,147.42,0.063]
[1745935206766,24.65824674,147.43,147.35,232.52]
[1745935206965,24.65824674,147.4,147.35,232.52]
[1745935207165,1.0,147.45,147.35,232.52]
[1745935207369,24.65824674,147.49,147.27,6.4323]
[1745935207370,24.65824674,147.36,147.27,6.4323]
[1745935207668,24.65824674,147.42,147.3,24.65824674]
[1745935207669,0.84173729,147.41,147.3,24.65824674]
[1745935207873,0.84173729,147.41,147.28,232.64]
[1745935207874,0.84173729,147.41,147.32,24.65824674]
[1745935208073,24.65824674,147.36,147.31,24.65824674]
[1745935208395,24.65824674,147.36,147.29,232.64]
[1745935208596,0.84173729,147.41,147.3,24.65824674]
[1745935208791,24.65824674,147.32,147.29,232.64]
[1745935209099,24.65824674,147.35,147.29,257.29824674]
[1745935209297,24.65824674,147.34,147.29,257.29824674]
[1745935209479,24.65824674,147.33,147.29,232.64]
[1745935209674,24.65824674,147.31,147.29,232.64]
[1745935209981,24.65824674,147.32,147.29,232.64]
[1745935210401,1.0,147.39,147.3,24.65824674]
[1745935210604,1.0,147.39,147.29,232.64]
[1745935210605,24.65824674,147.34,147.29,232.64]
[1745935210901,33.76358794,147.3,147.26,232.78001043]
[1745935211195,33.79162697,147.4,147.26,201.55707267]
[1745935211385,37.71448954,147.31,147.26,197.75187343]
[1745935211790,43.18065737,147.31,147.27,215.49817599]
[1745935211998,4.52799044,147.31,147.3,24.65824674]
[1745935212203,4.52799044,147.31,147.3,50.80040831]
[1745935212411,41.07020813,147.33,147.31,0.14216157]
[1745935212715,41.07020813,147.33,147.28,24.65824674]
[1745935212716,40.93058242,147.37,147.33,0.14216157]
[1745935212875,41.93058242,147.37,147.28,24.65824674]
[1745935213081,1.0,147.35,147.34,24.65824674]
[1745935213298,10.22383725,147.36,147.34,24.65824674]
[1745935213477,10.22383725,147.36,147.35,24.65824674]
[1745935213679,10.22383725,147.36,147.35,49.31649348]
[1745935213876,10.22383725,147.36,147.35,67.75068701]
[1745935214191,10.22383725,147.36,147.35,0.14216157]
[1745935214383,1.0,147.35,147.32,31.44610099]
[1745935214582,1.0,147.35,147.34,0.14216157]
[1745935214792,1.0,147.32,147.27,216.4365191]
[1745935214993,1.0,147.29,147.27,209.64672971]
[1745935215507,1.0,147.27,147.26,0.14216157]
[1745935216310,1.0,147.27,147.26,24.80040831]
[1745935216615,10.20479723,147.28,147.27,0.14216157]
[1745935216786,1.0,147.29,147.27,0.14216157]
[1745935216982,1.0,147.29,147.28,0.14216157]
[1745935217582,20.44767451,147.3,147.28,0.14216157]
[1745935217790,1.0,147.29,147.28,0.14216157]
[1745935217993,1.0,147.28,147.24,251.48964886]
[1745935218287,38.59967184,147.25,147.24,232.84]
[1745935218705,1.0,147.25,147.24,232.84]
[1745935218889,38.59967184,147.25,147.24,232.84]
[1745935219274,1.0,147.2,147.16,6.79515417]
[1745935219479,11.17812751,147.25,147.17,1.19820059]
[1745935219708,1.0,147.19,147.15,0.14216157]
[1745935220008,37.59967184,147.16,147.14,232.983]
[1745935220210,38.59967184,147.15,147.14,232.983]
[1745935220388,1.0,147.15,147.14,0.063]
[1745935220799,38.59967184,147.15,147.14,0.063]
[1745935221409,1.0,147.15,147.14,0.063]
[1745935221591,76.19934368,147.15,147.14,0.063]
[1745935221783,1.0,147.15,147.14,0.063]
[1745935222117,38.59967184,147.15,147.14,0.063]
[1745935222289,122.69047627,147.15,147.14,0.063]
[1745935222490,26.0,147.11,147.1,0.063]
[1745935222691,64.59967184,147.11,147.1,0.063]
[1745935223091,1.0,147.11,147.1,0.063]
[1745935223513,1.0,147.11,147.1,6.86109653]
[1745935223695,38.59967184,147.11,147.1,0.063]
[1745935223897,1.0,147.11,147.1,0.063]
[1745935224215,1.0,147.14,147.1,0.063]
[1745935224389,1.0,147.14,147.13,0.14216157]
[1745935224808,10.17812751,147.16,147.13,0.14216157]
[1745935225100,11.17812751,147.16,147.12,37.59967184]
[1745935225298,11.17812751,147.16,147.13,37.74183341]
[1745935225615,11.17812751,147.16,147.07,56.39148227]
[1745935225616,10.17812751,147.16,147.15,56.53364384]
[1745935225795,1.0,147.19,147.16,0.14216157]
[1745935225995,1.0,147.18,147.16,0.14216157]
[1745935226191,1.0,147.19,147.17,6.93702465]
[1745935226395,1.0,147.18,147.17,6.93702465]
[1745935226603,1.0,147.19,147.18,0.14216157]
[1745935226805,1.0,147.21,147.18,0.14216157]
[1745935227137,1.0,147.22,147.2,37.59967184]
[1745935227319,1.0,147.21,147.2,37.59967184]
[1745935227693,1.0,147.22,147.2,37.59967184]
[1745935227918,1.0,147.22,147.21,37.59967184]
[1745935228330,1.0,147.24,147.21,37.59967184]
[1745935228495,1.0,147.24,147.22,37.59967184]
[1745935229203,1.0,147.24,147.21,37.59967184]
[1745935229400,1.0,147.22,147.21,0.14216157]
[1745935229605,1.0,147.22,147.2,233.16]
[1745935229925,1.0,147.22,147.21,6.79301677]
[1745935230305,1.0,147.22,147.21,6.93517834]
[1745935231530,1.0,147.23,147.21,6.93517834]
[1745935231825,1.0,147.24,147.22,37.59967184]
[1745935232034,1.0,147.24,147.23,37.59967184]
[1745935232204,1.0,147.24,147.23,37.74183341]
[1745935232402,1.0,147.22,147.21,6.79301677]
[1745935232715,1.0,147.21,147.2,233.16]
[1745935233229,1.0,147.21,147.2,239.95347826]
[1745935233728,1.0,147.21,147.2,240.09563983]
[1745935234022,1.0,147.22,147.21,6.79301677]
[1745935234916,1.0,147.22,147.21,44.53485018]
[1745935235122,1.0,147.22,147.21,6.93517834]
[1745935235433,1.0,147.22,147.21,44.53485018]
[1745935236027,1.0,147.22,147.21,6.93517834]
[1745935236224,1.0,147.23,147.22,0.14216157]
[1745935236525,1.0,147.24,147.22,37.74183341]
[1745935236736,1.0,147.25,147.23,37.59967184]
[1745935236902,1.0,147.24,147.23,0.14216157]
[1745935237104,38.59967184,147.24,147.2,233.16]
[1745935237317,1.0,147.21,147.2,233.16]
[1745935237519,1.0,147.27,147.21,0.14216157]
[1745935237702,1.0,147.25,147.24,37.74183341]
[1745935238111,1.0,147.26,147.24,37.74183341]
[1745935238313,0.03,147.28,147.25,37.74183341]
[1745935238610,1.0,147.27,147.25,37.74183341]
[1745935238822,1.0,147.26,147.25,37.74183341]
[1745935239025,0.03,147.28,147.25,37.74183341]
[1745935239334,0.03,147.28,147.27,37.74183341]
[1745935239526,1.03,147.28,147.27,37.74183341]
[1745935239833,0.03,147.28,147.27,37.74183341]
[1745935240209,1.0,147.26,147.22,6.79255535]
[1745935240409,0.03,147.28,147.25,37.74183341]
[1745935240603,0.03,147.28,147.25,37.59967184]
[1745935240821,1.0,147.27,147.25,37.74183341]
[1745935241020,0.03,147.28,147.27,0.14216157]
[1745935241222,0.03,147.28,147.27,37.74183341]
[1745935241710,1.0,147.27,147.23,233.2]
[1745935241929,1.0,147.27,147.24,37.74183341]
[1745935242113,1.0,147.27,147.24,44.53336557]
[1745935242618,1.0,147.27,147.24,37.74183341]
[1745935242816,1.0,147.27,147.26,37.59967184]
[1745935243130,0.03,147.28,147.26,37.59967184]
[1745935243437,0.03,147.28,147.27,37.59967184]
[1745935243633,0.03,147.28,147.27,37.74183341]
[1745935243830,0.03,147.28,147.27,56.53364384]
[1745935244130,0.03,147.28,147.27,63.32389304]
[1745935244649,1.0,147.33,147.28,18.933972]
[1745935244813,1.0,147.33,147.32,37.74183341]
[1745935245016,1.0,147.36,147.33,18.64964886]
[1745935245218,5.98064993,147.35,147.34,0.14216157]
[1745935245542,4.98064993,147.35,147.34,37.74183341]
[1745935246133,1.0,147.36,147.34,44.5287821]
[1745935246340,1.0,147.36,147.35,233.16]
[1745935247425,1.03,147.37,147.35,233.30216157]
[1745935247623,1.0,147.36,147.35,233.16]
[1745935248556,1.03,147.37,147.35,270.90183341]
[1745935248749,1.0,147.36,147.35,277.68839601]
[1745935248929,1.0,147.36,147.35,233.16]
[1745935249450,1.0,147.36,147.35,240.08872417]
[1745935249750,1.03,147.37,147.35,240.08872417]
[1745935249918,1.0,147.36,147.35,240.08872417]
[1745935250620,1.0,147.36,147.35,233.30216157]
[1745935250836,1.0,147.36,147.35,240.08872417]
[1745935251046,1.0,147.36,147.35,277.68839601]
[1745935251253,1.0,147.36,147.35,233.16]
[1745935251469,38.59967184,147.36,147.35,233.16]
[1745935251628,1.0,147.36,147.35,233.16]
[1745935252444,0.03,147.37,147.35,277.54623444]
[1745935252652,1.0,147.36,147.35,277.68839601]
[1745935252835,0.03,147.37,147.36,0.14216157]
[1745935253036,0.03,147.37,147.36,56.53364384]
[1745935253442,0.03,147.41,147.36,56.53364384]
[1745935253644,0.03,147.41,147.4,37.74183341]
[1745935254736,0.03,147.41,147.4,44.52609392]
[1745935254936,0.03,147.41,147.4,6.92642208]
[1745935255144,1.0,147.4,147.37,0.14216157]
[1745935255439,1.0,147.39,147.37,37.74183341]
[1745935255750,1.0,147.38,147.37,0.14216157]
[1745935255944,1.0,147.37,147.35,239.94649877]
[1745935256266,1.0,147.37,147.36,37.74183341]
[1745935256446,1.0,147.4,147.37,0.14216157]
[1745935256637,1.0,147.4,147.38,44.384853]
[1745935256838,1.0,147.4,147.39,37.74183341]
[1745935257172,1.0,147.4,147.39,0.14216157]
[1745935257664,1.0,147.37,147.35,233.16]
[1745935257829,1.0,147.38,147.36,37.59967184]
[1745935258034,1.0,147.38,147.37,37.74183341]
[1745935258640,1.0,147.38,147.37,0.14216157]
[1745935259156,1.0,147.38,147.37,44.52747499]
[1745935259771,1.0,147.38,147.37,6.92780315]
[1745935260070,1.0,147.4,147.37,44.52747499]
[1745935260384,1.03,147.41,147.39,37.74183341]
[1745935260534,1.0,147.4,147.39,0.14216157]
[1745935260979,1.0,147.39,147.36,6.78608043]
[1745935261170,1.0,147.36,147.35,239.94636568]
[1745935261476,1.0,147.36,147.35,277.68819909]
[1745935261660,1.0,147.36,147.35,233.16]
[1745935261862,1.0,147.36,147.35,270.75967184]
[1745935262058,1.0,147.38,147.35,277.54623444]
[1745935262383,1.0,147.39,147.38,0.14216157]
[1745935262670,1.0,147.39,147.38,37.74183341]
[1745935263088,1.0,147.39,147.36,6.78594112]
[1745935263377,1.0,147.38,147.37,37.74183341]
[1745935263736,1.0,147.39,147.38,0.14216157]
[1745935264168,1.0,147.39,147.38,17.58216157]
[1745935264476,1.03,147.41,147.38,55.18183341]
[1745935264715,0.03,147.41,147.4,37.59967184]
[1745935264874,0.03,147.41,147.4,37.74183341]
[1745935265185,0.03,147.41,147.4,63.31790435]
[1745935265350,0.03,147.41,147.4,126.91757619]
[1745935265746,0.03,147.42,147.41,44.933972]
[1745935265956,0.03,147.42,147.41,120.13331568]
[1745935266547,0.03,147.46,147.41,120.13331568]
[1745935266864,0.03,147.46,147.45,37.74183341]
[1745935267049,1.03,147.46,147.45,61.96379339]
[1745935268499,0.03,147.46,147.45,80.75560382]
[1745935268788,1.03,147.46,147.45,80.75560382]
[1745935269077,0.03,147.46,147.45,61.96379339]
[1745935269288,0.03,147.46,147.43,35.74874309]
[1745935269289,1.0,147.45,147.43,37.59967184]
[1745935269480,1.0,147.4,147.38,239.68518116]
[1745935269788,0.03,147.46,147.4,0.14216157]
[1745935269789,1.0,147.42,147.4,0.14216157]
[1745935270582,1.0,147.42,147.4,37.74183341]
[1745935270772,1.0,147.42,147.38,239.68518116]
[1745935270773,1.0,147.4,147.38,239.68518116]
[1745935270975,1.0,147.39,147.38,232.9]
[1745935271485,1.0,147.39,147.38,250.34]
[1745935271791,1.0,147.39,147.38,232.9]
[1745935271961,1.0,147.39,147.38,250.34]
[1745935272158,38.59967184,147.39,147.38,232.9]
[1745935272360,38.59967184,147.39,147.38,250.34]
[1745935272861,1.0,147.34,147.32,6.78775479]
[1745935273084,1.0,147.34,147.33,17.44]
[1745935273760,1.0,147.35,147.33,55.03967184]
[1745935274001,1.0,147.34,147.33,55.18183341]
[1745935274161,1.0,147.35,147.33,55.18183341]
[1745935274361,1.0,147.38,147.34,37.74183341]
[1745935274685,1.0,147.38,147.37,37.74183341]
[1745935274863,1.0,147.38,147.37,0.14216157]
[1745935275064,1.0,147.38,147.37,6.92780315]
[1745935275381,1.0,147.38,147.35,37.74183341]
[1745935275583,1.0,147.37,147.36,0.14216157]
[1745935276581,1.0,147.36,147.34,44.3865177]
[1745935276779,1.0,147.35,147.34,0.14216157]
[1745935276960,1.0,147.35,147.33,17.44]
[1745935277161,1.0,147.35,147.34,0.14216157]
[1745935278686,1.0,147.34,147.32,44.38750103]
[1745935278891,1.0,147.34,147.33,17.44]
[1745935279074,1.0,147.35,147.33,17.44]
[1745935279395,1.0,147.4,147.35,18.933972]
[1745935279590,1.0,147.4,147.39,37.74183341]
[1745935279764,1.0,147.4,147.39,55.18183341]
[1745935280395,1.0,147.43,147.4,0.14216157]
[1745935280568,1.0,147.43,147.42,37.59967184]
[1745935280875,1.0,147.45,147.42,37.74183341]
[1745935281191,1.0,147.45,147.44,44.3820918]
[1745935281395,0.03,147.46,147.44,44.52425337]
[1745935281581,0.03,147.46,147.45,55.03967184]
[1745935281780,1.03,147.46,147.45,55.03967184]
[1745935282471,1.03,147.46,147.45,61.82163182]
[1745935282991,0.03,147.46,147.45,61.82163182]
[1745935283702,1.0,147.44,147.43,232.96]
[1745935283886,1.0,147.45,147.43,294.78255185]
[1745935284200,1.0,147.45,147.44,0.14216157]
[1745935284378,1.0,147.44,147.43,294.92471342]
[1745935284567,1.03,147.46,147.44,0.14216157]
[1745935284772,0.03,147.46,147.45,37.74183341]
[1745935285786,0.03,147.46,147.45,56.53364384]
[1745935286596,0.03,147.46,147.45,63.17344225]
[1745935286799,0.03,147.46,147.45,63.31560382]
[1745935288703,0.03,147.48,147.46,0.14216157]
[1745935288879,0.03,147.48,147.47,56.53364384]
[1745935289395,0.03,147.48,147.47,94.13331568]
[1745935289593,0.03,147.48,147.47,56.53364384]
[1745935290101,0.03,147.48,147.47,94.13331568]
[1745935291074,0.03,147.48,147.47,100.91435589]
[1745935291782,0.03,147.52,147.51,18.933972]
[1745935291993,0.03,147.52,147.51,73.31364384]
[1745935293096,0.03,147.52,147.51,80.09284525]
[1745935296189,0.03,147.54,147.53,26.0]
[1745935296398,0.03,147.54,147.53,63.74183341]
[1745935296599,0.03,147.54,147.53,82.53364384]
[1745935297501,0.03,147.54,147.53,89.31192622]
[1745935300703,0.03,147.54,147.53,51.71225438]
[1745935300884,0.03,147.54,147.53,89.31192622]
[1745935302390,0.03,147.54,147.53,51.71225438]
[1745935302599,0.03,147.54,147.53,89.31192622]
[1745935302798,0.03,147.54,147.53,70.52011579]
[1745935303005,0.03,147.54,147.53,54.35967184]
[1745935303312,1.03,147.54,147.53,16.76]
[1745935303492,1.03,147.54,147.53,16.90216157]
[1745935303992,1.03,147.54,147.53,61.13795422]
[1745935304200,0.03,147.54,147.53,61.28011579]
[1745935304410,1.03,147.54,147.53,61.28011579]
[1745935304585,0.03,147.54,147.53,61.28011579]
[1745935305001,1.03,147.54,147.53,61.28011579]
[1745935305324,0.03,147.54,147.53,61.28011579]
[1745935306082,1.03,147.54,147.53,54.50183341]
[1745935306308,1.03,147.54,147.53,16.90216157]
[1745935306514,1.03,147.54,147.51,6.77912595]
[1745935306701,1.03,147.54,147.53,16.76]
[1745935307100,45.16017184,147.54,147.53,16.76]
[1745935307907,1.0,147.5,147.48,37.59967184]
[1745935308109,1.0,147.5,147.49,16.76]
[1745935308620,1.0,147.5,147.49,16.90216157]
[1745935308820,1.0,147.5,147.49,16.76]
[1745935309120,1.0,147.53,147.49,91.95934368]
[1745935309337,0.03,147.54,147.52,37.74183341]
[1745935309621,0.03,147.54,147.53,37.59967184]
[1745935309819,0.03,147.54,147.53,44.52011579]
[1745935310521,0.03,147.54,147.53,102.10093907]
[1745935310924,0.03,147.54,147.53,64.50126723]